bitfinex-derivatives/quotes_ETHF0:USTF0_20250912
["timestamp","ask_amount","ask_price","bid_price","bid_amount"]
[1757685701127,0.1167,4551.5,4551.4,3.2078]
[1757685701328,0.4123,4552.0,4551.4,3.2078]
[1757685701624,0.4123,4552.0,4551.5,0.238]
[1757685701837,0.4123,4552.0,4551.9,3.2078]
[1757685702038,0.4123,4552.0,4551.9,3.4458]
[1757685702335,0.1167,4551.5,4551.4,3.2078]
[1757685702527,0.4123,4551.5,4551.4,3.4458]
[1757685703038,0.4123,4551.5,4551.4,0.238]
[1757685703243,0.4123,4551.0,4550.9,3.2078]
[1757685703430,0.4123,4550.5,4550.4,3.2078]
[1757685703634,0.4123,4550.5,4550.4,3.4458]
[1757685705034,0.4123,4550.5,4550.4,3.2078]
[1757685705240,0.4123,4550.5,4550.4,3.4458]
[1757685705639,0.4123,4550.5,4549.9,3.2078]
[1757685705640,0.4123,4550.0,4549.9,3.2078]
[1757685705837,0.4123,4550.0,4548.9,3.2078]
[1757685705838,0.4123,4549.5,4548.9,3.2078]
[1757685706034,0.4123,4549.0,4548.9,3.2078]
[1757685706337,0.4123,4549.0,4548.9,3.4468]
[1757685706538,0.4123,4549.5,4548.9,3.4468]
[1757685706836,0.4123,4549.5,4549.4,3.2078]
[1757685707231,0.4123,4549.5,4549.4,3.4458]
[1757685707632,0.4123,4549.0,4548.9,3.2078]
[1757685708030,0.4123,4549.0,4548.9,3.4458]
[1757685708432,0.4123,4549.5,4548.9,7.4458]
[1757685708632,0.4123,4549.5,4549.4,3.2078]
[1757685709028,0.4123,4549.5,4549.4,3.4468]
[1757685709228,0.4123,4549.0,4548.9,3.2078]
[1757685709636,0.4123,4549.0,4548.9,3.4468]
[1757685709833,0.4123,4549.0,4548.9,3.2078]
[1757685710232,0.4123,4549.0,4548.9,3.4458]
[1757685710434,0.1167,4549.5,4548.9,3.4458]
[1757685710636,0.1167,4549.5,4549.4,3.2078]
[1757685710832,0.1167,4549.5,4549.4,3.4468]
[1757685711036,0.4123,4549.5,4549.4,3.4468]
[1757685711236,0.4123,4549.5,4549.4,3.2078]
[1757685711437,0.4123,4549.5,4549.4,3.4458]
[1757685712346,0.1167,4550.0,4549.4,3.4458]
[1757685712541,0.4123,4550.0,4549.9,3.2078]
[1757685712743,0.4123,4550.0,4549.9,3.4468]
[1757685713137,0.4123,4550.0,4549.9,3.2078]
[1757685713440,0.96326691,4550.0,4549.9,3.4468]
[1757685713643,0.4123,4550.0,4549.9,3.4458]
[1757685714639,0.4123,4550.0,4549.9,3.4468]
[1757685715840,0.96493451,4550.0,4549.9,3.2078]
[1757685716139,0.96493451,4550.0,4549.9,3.4468]
[1757685717448,0.55263451,4550.0,4549.9,3.4468]
[1757685717844,0.4123,4550.0,4549.9,3.4468]
[1757685718444,0.4123,4550.0,4549.9,3.2078]
[1757685718644,0.4123,4550.0,4549.9,3.4468]
[1757685718846,0.4123,4550.0,4549.9,3.2078]
[1757685719044,4.4123,4550.0,4549.9,3.2078]
[1757685719251,0.4233,4549.5,4549.4,3.2078]
[1757685719644,4.4233,4549.5,4549.4,0.239]
[1757685719947,5.59420383,4549.5,4549.4,0.239]
[1757685720148,1.59420383,4549.5,4549.4,0.239]
[1757685720355,4.4233,4549.5,4549.4,0.239]
[1757685720649,4.4233,4549.5,4548.8,3.2078]
[1757685720650,0.3039,4548.9,4548.8,3.2078]
[1757685720846,0.1194,4549.0,4548.4,31.66]
[1757685720847,0.4233,4548.5,4548.4,31.66]
[1757685721049,4.4233,4548.5,4548.4,0.239]
[1757685721448,0.4233,4548.5,4548.4,0.239]
[1757685722647,0.4233,4548.5,4548.2,3.2078]
[1757685722847,0.1194,4548.5,4548.3,0.239]
[1757685723049,0.3039,4548.4,4548.3,0.239]
[1757685723550,0.1194,4548.5,4548.3,0.239]
[1757685724245,0.3039,4548.4,4548.3,0.239]
[1757685727653,0.3039,4548.3,4548.2,3.2078]
[1757685727856,0.3039,4548.3,4548.2,0.239]
[1757685729552,0.3039,4548.3,4547.7,3.2078]
[1757685729553,0.1194,4548.0,4547.7,3.2078]
[1757685729746,0.3039,4547.9,4547.8,0.239]
[1757685730145,0.3039,4547.9,4547.7,3.2078]
[1757685730346,0.3039,4547.9,4547.8,0.239]
[1757685730843,4.3039,4547.9,4547.8,0.239]
[1757685732645,0.3039,4547.9,4547.8,0.239]
[1757685733151,4.3039,4547.9,4547.8,0.239]
[1757685734156,4.3039,4547.9,4547.2,3.2078]
[1757685734157,0.3039,4547.4,4547.2,3.2078]
[1757685734345,0.3039,4547.4,4547.3,0.238]
[1757685734550,0.4233,4547.0,4546.9,31.658]
[1757685734862,0.4233,4547.0,4546.9,35.1038]
[1757685735152,0.3039,4547.9,4546.9,39.1038]
[1757685735357,0.3039,4547.9,4547.8,3.2078]
[1757685735556,0.3039,4547.9,4547.8,3.4458]
[1757685736950,0.3039,4547.9,4547.8,3.2078]
[1757685737158,0.3039,4547.4,4547.3,3.2078]
[1757685737359,0.3039,4547.4,4547.3,3.4458]
[1757685737858,0.3039,4547.4,4547.3,3.2078]
[1757685738059,0.3039,4547.4,4547.3,3.4458]
[1757685739360,0.4233,4548.0,4547.3,3.4458]
[1757685739564,0.4233,4548.0,4547.9,3.2078]
[1757685739759,0.4233,4548.0,4547.9,3.4458]
[1757685740060,0.4233,4548.5,4547.9,3.4458]
[1757685740250,0.4233,4548.5,4548.4,3.2078]
[1757685740455,0.4233,4548.5,4548.4,3.4458]
[1757685740751,0.4233,4548.0,4547.9,3.2078]
[1757685740951,0.4233,4548.0,4546.9,31.658]
[1757685740952,0.4233,4547.5,4547.4,3.2078]
[1757685741162,0.4233,4547.5,4547.4,3.4458]
[1757685742251,4.4233,4547.5,4546.9,34.8658]
[1757685742462,4.4233,4547.5,4543.5,1.98007]
[1757685742463,0.4233,4546.0,4545.9,3.2078]
[1757685742663,0.4233,4546.0,4545.9,3.4458]
[1757685743961,0.1194,4546.5,4545.9,3.4458]
[1757685744158,0.3039,4546.4,4545.9,3.4458]
[1757685744462,0.1194,4546.5,4545.9,3.4458]
[1757685745059,0.4233,4546.0,4545.9,3.4458]
[1757685745259,0.1194,4546.0,4545.4,34.8788]
[1757685745563,0.4233,4545.5,4545.4,34.8788]
[1757685745763,0.4233,4545.5,4545.4,35.1168]
[1757685746364,0.4233,4545.5,4545.4,34.8788]
[1757685746565,0.1194,4546.0,4545.4,35.1168]
[1757685746767,0.4233,4546.0,4545.9,3.2078]
[1757685747070,0.4233,4546.0,4545.9,3.4458]
[1757685747765,0.1194,4546.5,4545.9,3.4458]
[1757685747955,0.41,4546.5,4546.4,3.2078]
[1757685748160,0.41,4547.0,4546.4,3.4458]
[1757685748361,0.1194,4547.0,4546.4,3.4458]
[1757685748569,0.2906,4546.9,4546.4,3.4458]
[1757685748863,0.1194,4547.0,4546.4,3.4458]
[1757685748864,0.4109,4546.5,4546.4,3.4458]
[1757685749066,0.4109,4546.5,4546.4,0.238]
[1757685749260,0.2906,4545.9,4545.8,3.2078]
[1757685749461,0.2906,4545.9,4545.8,3.4458]
[1757685749961,0.1203,4545.5,4544.6,3.2078]
[1757685750161,0.2906,4545.4,4544.7,0.238]
[1757685750963,0.1203,4545.0,4544.7,0.238]
[1757685751154,0.1203,4545.0,4544.8,0.238]
[1757685751354,0.2906,4544.9,4544.8,0.238]
[1757685753159,0.1203,4545.0,4544.8,0.238]
[1757685753561,0.2906,4544.9,4544.8,0.238]
[1757685753760,0.1203,4545.5,4544.8,0.238]
[1757685753960,0.4109,4545.5,4545.4,3.2078]
[1757685754156,0.4109,4545.5,4545.4,3.4458]
[1757685755074,0.1203,4546.0,4545.4,3.4458]
[1757685755275,0.1203,4546.5,4545.9,3.2078]
[1757685755463,0.2906,4546.4,4546.0,0.238]
[1757685756067,0.1203,4546.5,4546.0,0.238]
[1757685756565,0.2906,4546.4,4546.0,0.238]
[1757685757272,0.1203,4546.5,4546.0,0.238]
[1757685758063,0.2906,4546.4,4546.0,0.238]
[1757685758469,0.4109,4546.0,4545.9,3.2078]
[1757685758669,0.4109,4546.0,4545.9,3.4458]
[1757685760570,0.1203,4546.5,4545.9,7.4458]
[1757685760766,0.1203,4546.5,4545.9,3.4458]
[1757685761069,0.2906,4546.7,4545.9,3.4458]
[1757685761374,0.0659,4546.9,4545.9,3.4458]
[1757685761375,0.0659,4546.9,4546.5,3.2078]
[1757685761673,0.2906,4546.8,4546.6,0.238]
[1757685762567,0.0659,4546.9,4546.5,3.2078]
[1757685762768,0.0659,4546.9,4546.5,3.4448]
[1757685762973,0.2906,4546.8,4546.5,0.237]
[1757685763373,0.0659,4546.9,4546.5,0.237]
[1757685763669,0.2906,4546.8,4546.5,3.4448]
[1757685764171,0.0659,4546.9,4546.6,0.21993999]
[1757685764373,0.0659,4546.9,4546.5,3.4448]
[1757685764374,0.1203,4547.5,4546.5,3.4448]
[1757685764563,0.1203,4548.0,4547.4,3.2078]
[1757685764766,0.2906,4547.9,4547.5,0.237]
[1757685765367,0.1203,4548.0,4547.5,0.237]
[1757685765670,0.2906,4548.6,4547.9,3.2078]
[1757685765874,0.1203,4549.0,4548.4,3.2078]
[1757685766171,0.4109,4548.5,4548.4,3.4458]
[1757685766772,0.1203,4549.0,4548.4,3.4458]
[1757685766971,0.4109,4549.0,4548.9,3.2078]
[1757685767273,0.4109,4549.0,4548.9,3.4448]
[1757685768770,0.1203,4549.5,4548.9,3.4448]
[1757685768771,0.4109,4549.5,4548.9,3.4448]
[1757685769073,0.4109,4550.0,4549.4,3.2078]
[1757685769281,0.1203,4550.0,4549.5,0.237]
[1757685769476,0.2906,4549.9,4549.5,0.237]
[1757685769671,0.1203,4550.0,4549.5,0.237]
[1757685769870,0.2906,4549.9,4549.5,0.237]
[1757685770270,0.1203,4550.0,4549.5,0.237]
[1757685770574,0.2906,4549.9,4549.5,0.237]
[1757685770780,0.1203,4550.0,4549.4,3.2078]
[1757685770781,0.4109,4549.5,4549.4,3.2078]
[1757685770971,0.4109,4549.5,4549.4,3.4448]
[1757685771472,0.1203,4549.5,4549.4,3.2078]
[1757685771678,0.4109,4549.5,4549.4,3.4448]
[1757685772280,0.4109,4549.5,4549.4,3.2078]
[1757685772586,0.4109,4549.5,4546.8,2.93155638]
[1757685772587,0.4109,4549.5,4548.9,3.2078]
[1757685772784,0.4109,4549.0,4548.9,3.2078]
[1757685773079,0.4109,4549.0,4548.9,3.4448]
[1757685774671,0.4109,4548.5,4548.4,3.4448]
[1757685775982,0.1203,4548.5,4548.4,0.236]
[1757685776375,0.1203,4548.0,4547.9,3.2078]
[1757685776581,0.4109,4548.0,4547.9,3.4438]
[1757685776982,0.4109,4548.0,4547.9,3.2078]
[1757685777778,0.4109,4548.0,4547.6,0.236]
[1757685778185,0.1203,4548.0,4547.6,0.236]
[1757685778383,0.2977,4547.9,4547.8,3.2078]
[1757685779079,0.2977,4547.9,4547.8,3.4438]
[1757685780383,0.2977,4547.9,4547.3,34.8908]
[1757685780572,0.121,4547.5,4547.4,0.236]
[1757685781175,0.4187,4547.5,4547.4,0.236]
[1757685781781,0.1203,4548.0,4547.4,0.236]
[1757685781981,0.1203,4548.5,4547.9,3.2078]
[1757685782174,0.418,4548.5,4548.4,3.2078]
[1757685783172,0.121,4549.5,4548.4,3.4438]
[1757685783377,0.418,4549.0,4548.9,3.2078]
[1757685783583,0.418,4549.0,4548.9,3.4438]
[1757685783779,0.4187,4549.5,4548.9,3.4438]
[1757685783979,0.4187,4549.5,4549.4,3.2078]
[1757685785284,0.4187,4549.5,4549.4,3.4438]
[1757685786281,0.121,4550.0,4549.4,3.4438]
[1757685786487,0.121,4550.0,4549.9,3.2078]
[1757685786680,0.121,4550.0,4549.9,3.4438]
[1757685786874,0.4187,4550.0,4549.9,3.4438]
[1757685787080,0.4187,4550.0,4549.9,3.2078]
[1757685787287,0.2977,4549.9,4549.8,0.235]
[1757685787487,0.2977,4549.9,4549.7,3.2078]
[1757685787488,0.121,4550.0,4549.7,3.4428]
[1757685787794,0.2977,4549.9,4549.7,3.4428]
[1757685788079,0.121,4550.0,4549.7,3.4428]
[1757685788279,0.2977,4549.9,4549.7,3.4428]
[1757685788475,0.121,4550.0,4549.7,3.4428]
[1757685788878,0.2977,4549.9,4549.7,3.4428]
[1757685789176,0.121,4550.0,4549.7,3.4428]
[1757685789376,0.2977,4549.9,4549.7,3.4428]
[1757685789683,0.2977,4549.4,4549.2,3.2078]
[1757685789879,0.2977,4549.4,4549.3,0.235]
[1757685790277,0.121,4550.0,4549.3,4.45481]
[1757685790475,0.0659,4550.1,4549.8,3.2078]
[1757685790679,0.2977,4551.2,4549.9,0.235]
[1757685790882,0.121,4551.5,4550.9,3.2078]
[1757685791081,0.121,4551.5,4551.4,3.2078]
[1757685791284,0.4187,4552.5,4551.4,3.4428]
[1757685791485,0.121,4552.5,4552.2,3.2078]
[1757685791680,0.2977,4552.4,4552.2,3.2078]
[1757685792185,0.121,4552.5,4551.7,3.2078]
[1757685792386,0.121,4552.0,4551.8,0.235]
[1757685792586,0.121,4552.0,4551.9,0.235]
[1757685792587,0.4187,4552.0,4551.9,0.235]
[1757685793083,0.2977,4551.9,4551.8,0.235]
[1757685793474,3.2078,4552.2,4551.2,3.2078]
[1757685793680,0.4187,4552.5,4551.9,3.2078]
[1757685793681,0.4187,4552.0,4551.9,3.2078]
[1757685794080,0.4187,4552.0,4551.9,3.4438]
[1757685794480,0.4187,4552.0,4551.9,3.2078]
[1757685794677,0.4187,4552.0,4551.9,3.4438]
[1757685794892,0.4187,4552.0,4551.9,0.236]
[1757685795088,0.2977,4551.9,4551.6,0.236]
[1757685795287,0.4187,4551.5,4551.4,3.2078]
[1757685795493,0.4187,4551.5,4551.4,3.4438]
[1757685795792,0.121,4551.5,4551.4,0.236]
[1757685795984,0.121,4551.5,4551.4,3.2078]
[1757685796178,0.4187,4551.5,4551.4,3.2078]
[1757685796987,0.4187,4551.5,4549.1,31.668]
[1757685796988,0.4187,4551.5,4550.9,3.2078]
[1757685797183,0.4187,4551.0,4550.9,3.2078]
[1757685797585,0.121,4551.0,4550.4,3.4438]
[1757685797796,0.2977,4550.9,4550.5,0.236]
[1757685798588,0.121,4551.0,4550.5,0.236]
[1757685799394,0.4187,4551.0,4550.9,3.2078]
[1757685799597,0.4187,4551.0,4550.9,3.4438]
[1757685801193,0.121,4551.5,4550.9,3.4438]
[1757685802097,0.4187,4551.0,4550.9,3.4438]
[1757685802299,0.121,4551.0,4550.9,3.4438]
[1757685802592,0.4187,4551.0,4550.9,3.4438]
[1757685802985,0.4187,4551.0,4550.9,3.70824676]
[1757685803189,0.121,4551.0,4550.9,3.4438]
[1757685803590,0.121,4551.0,4550.9,3.2078]
[1757685803591,0.4187,4551.0,4550.9,3.2078]
[1757685803788,0.4187,4551.0,4550.9,3.4428]
[1757685803992,0.121,4551.5,4550.9,3.4428]
[1757685804695,0.2977,4551.4,4550.9,3.4428]
[1757685805199,0.4187,4551.0,4550.9,3.4428]
[1757685806505,0.4187,4551.0,4550.4,3.2078]
[1757685806506,0.121,4550.5,4550.4,3.2078]
[1757685806698,0.121,4550.5,4549.1,31.668]
[1757685806699,0.2977,4549.9,4549.8,3.2078]
[1757685807203,0.121,4549.5,4549.4,0.235]
[1757685807407,0.2977,4549.4,4549.3,0.235]
[1757685807806,0.121,4549.0,4548.7,3.2078]
[1757685808004,0.3028,4548.9,4548.8,0.235]
[1757685809404,0.121,4549.0,4548.8,0.235]
[1757685809607,0.121,4549.5,4548.9,4.26499352]
[1757685809811,0.121,4549.5,4549.4,3.2078]
[1757685810216,0.4238,4549.5,4549.4,3.4428]
[1757685810409,0.4238,4549.5,4549.4,3.2078]
[1757685810608,0.4238,4549.5,4549.4,3.4428]
[1757685811212,0.4238,4549.5,4549.4,0.235]
[1757685811406,0.3028,4548.9,4548.8,3.2078]
[1757685811606,0.3028,4548.9,4548.8,3.70811857]
[1757685811811,0.3028,4548.9,4548.8,3.4428]
[1757685812719,0.3028,4548.4,4548.2,3.2078]
[1757685812919,0.3028,4548.4,4548.3,0.234]
[1757685813913,0.3028,4548.4,4548.2,3.2078]
[1757685814113,0.3028,4548.4,4548.3,0.234]
[1757685814718,0.421,4548.5,4548.3,0.234]
[1757685814913,0.421,4549.0,4548.2,3.2078]
[1757685815213,0.3028,4548.9,4548.2,3.2078]
[1757685815620,0.3028,4548.4,4548.2,3.2078]
[1757685815813,0.1182,4548.5,4548.2,3.2078]
[1757685816016,0.3028,4548.4,4548.2,3.2078]
[1757685816314,0.1182,4548.5,4548.2,3.2078]
[1757685816815,0.3028,4548.4,4548.2,3.2078]
[1757685817510,0.1182,4548.5,4548.2,3.2078]
[1757685817910,0.3028,4548.4,4548.2,3.2078]
[1757685818111,0.1182,4548.5,4548.2,3.2078]
[1757685818414,0.3028,4548.4,4548.2,3.2078]
[1757685818615,0.1182,4548.0,4547.7,3.2078]
[1757685818906,0.1182,4547.5,4547.4,0.234]
[1757685819121,0.421,4547.5,4547.4,0.234]
[1757685821011,0.1182,4548.0,4547.5,0.39567]
[1757685821212,0.1182,4548.0,4547.4,4.45389999]
[1757685821213,0.1182,4548.5,4547.9,3.2078]
[1757685821420,0.3028,4547.9,4547.5,0.21989]
[1757685821614,0.3028,4547.9,4547.8,3.2078]
[1757685821821,0.3028,4547.9,4547.8,3.4418]
[1757685822414,0.421,4548.5,4547.8,3.4418]
[1757685822710,0.421,4548.5,4548.4,3.2078]
[1757685822911,0.421,4548.5,4548.4,3.4418]
[1757685829112,0.3028,4548.9,4548.4,3.4418]
[1757685829526,0.421,4549.0,4548.4,3.4418]
[1757685829729,0.421,4549.0,4548.9,3.2078]
[1757685829918,0.421,4549.0,4548.9,3.4408]
[1757685830725,0.421,4549.0,4548.9,3.2078]
[1757685835328,0.6233,4549.0,4548.9,3.2078]
[1757685835721,0.8144,4549.0,4548.9,3.2078]
[1757685836920,0.8144,4549.0,4548.8,0.233]
[1757685837125,0.8144,4548.5,4548.4,3.2078]
[1757685837327,0.8144,4548.5,4548.4,3.4408]
[1757685838534,0.8264,4548.0,4547.3,3.2078]
[1757685838826,0.3059,4547.4,4547.3,3.2078]
[1757685839031,0.3059,4547.4,4547.3,3.4408]
[1757685839635,0.5011,4547.4,4547.3,3.4408]
[1757685839827,0.3059,4547.4,4547.3,3.4408]
[1757685841330,0.3059,4547.4,4547.3,3.2078]
[1757685842032,0.0659,4547.9,4547.3,3.4408]
[1757685842231,0.0659,4547.9,4547.8,3.2078]
[1757685842423,0.0659,4547.9,4547.8,3.4408]
[1757685842629,0.3718,4547.9,4547.8,3.4408]
[1757685842829,0.3718,4547.9,4547.8,3.2078]
[1757685843339,0.3059,4547.4,4547.3,3.2078]
[1757685843532,0.3059,4547.4,4547.3,3.4408]
[1757685843832,0.3059,4547.4,4547.3,3.2078]
[1757685844043,0.3059,4547.4,4547.3,3.4408]
[1757685845237,0.3059,4547.9,4547.3,3.4408]
[1757685845439,3.3294,4548.0,4547.3,3.4408]
[1757685845633,0.3059,4547.4,4547.3,3.4408]
[1757685846130,0.1216,4547.5,4547.3,3.4408]
[1757685846332,0.3059,4547.4,4547.3,3.4408]
[1757685846738,0.3718,4547.8,4547.3,3.4408]
[1757685846939,0.3059,4547.7,4547.3,3.4408]
[1757685847234,0.0659,4547.8,4547.3,3.4408]
[1757685847432,0.4241,4548.5,4547.3,3.4408]
[1757685847630,0.3059,4548.4,4548.2,3.2078]
[1757685847834,0.3059,4548.4,4548.3,0.233]
[1757685849440,0.1182,4548.5,4548.2,3.2078]
[1757685849744,0.1216,4548.0,4547.7,3.2078]
[1757685850041,0.3059,4547.9,4547.8,0.233]
[1757685850437,0.3059,4547.9,4547.7,3.2078]
[1757685850638,0.3059,4548.4,4547.8,0.233]
[1757685850833,0.3059,4548.4,4548.3,3.2078]
[1757685851029,0.3059,4548.4,4548.3,3.4408]
[1757685851642,0.1216,4548.0,4547.7,3.2078]
[1757685851842,0.3059,4547.9,4547.8,0.233]
[1757685853640,0.1182,4548.5,4547.8,0.233]
[1757685853641,0.3059,4548.3,4547.8,4.62864]
[1757685853841,0.3059,4548.3,4548.2,3.2078]
[1757685854041,0.3059,4548.3,4548.2,3.4408]
[1757685855245,0.3059,4548.3,4548.2,3.2078]
[1757685855450,0.3059,4548.3,4548.2,3.4408]
[1757685856852,0.1182,4548.5,4548.2,7.4408]
[1757685857047,0.1182,4549.0,4548.4,0.39559]
[1757685857253,0.1182,4549.0,4548.9,3.2078]
[1757685857451,0.4241,4549.0,4548.9,3.4408]
[1757685859046,0.1182,4549.0,4548.9,3.4408]
[1757685859251,0.0659,4549.1,4548.9,7.83634]
[1757685859853,0.1216,4549.5,4549.4,0.3955]
[1757685860051,0.1216,4549.5,4549.4,3.4408]
[1757685860246,0.4275,4549.5,4549.4,3.4408]
[1757685861456,0.4275,4550.0,4549.4,3.4408]
[1757685861756,0.1216,4549.5,4549.4,3.4408]
[1757685862058,0.4275,4549.5,4549.4,3.4408]
[1757685862249,0.4275,4549.5,4549.4,3.2078]
[1757685862450,0.4275,4549.5,4549.4,3.4408]
[1757685862951,0.1216,4549.5,4549.4,3.4408]
[1757685863158,0.4275,4550.0,4549.4,3.8363]
[1757685863356,0.4275,4550.0,4549.9,3.2078]
[1757685863659,0.4275,4550.0,4549.9,3.4408]
[1757685864253,0.0488,4550.3,4550.0,0.39545]
[1757685864552,0.3059,4550.2,4550.1,0.233]
[1757685866446,0.4275,4550.0,4549.9,3.2078]
[1757685866652,0.4275,4550.0,4549.9,3.4408]
[1757685869158,0.4249,4550.5,4550.4,0.39542]
[1757685869356,0.3033,4550.9,4550.6,0.3954]
[1757685869556,0.3033,4550.9,4550.7,0.233]
[1757685869760,0.1216,4551.0,4550.7,0.233]
[1757685869958,0.4249,4551.0,4550.9,3.2078]
[1757685870259,0.4249,4551.0,4550.9,3.4408]
[1757685872955,0.4249,4551.0,4550.9,3.2078]
[1757685873163,0.4249,4551.0,4550.9,3.4408]
[1757685874056,0.1213,4552.0,4550.9,3.4408]
[1757685874057,0.4249,4551.5,4550.9,3.4408]
[1757685874255,0.1213,4552.0,4551.8,0.39529]
[1757685874457,0.4246,4552.0,4551.9,3.4408]
[1757685875361,0.4246,4552.0,4551.9,3.2078]
[1757685875555,0.4246,4552.0,4551.9,3.4408]
[1757685876266,0.4246,4552.0,4551.9,3.2078]
[1757685876467,0.4246,4552.0,4551.9,3.4408]
[1757685880067,0.1213,4552.5,4551.9,3.4408]
[1757685880263,0.4246,4552.5,4552.4,3.2078]
[1757685880463,0.4246,4552.5,4552.4,3.4398]
[1757685880664,0.4246,4552.5,4552.4,3.2078]
[1757685880865,0.4246,4552.5,4552.4,3.4398]
[1757685883677,0.8326,4552.5,4552.4,3.2078]
[1757685883875,0.8326,4552.5,4552.4,3.4398]
[1757685884074,0.4246,4552.5,4552.4,3.4398]
[1757685884576,0.1213,4553.0,4552.4,3.4398]
[1757685884577,0.1213,4553.0,4552.9,0.3952]
[1757685884781,0.3033,4554.1,4552.9,3.4398]
[1757685884977,0.4246,4554.0,4553.9,3.2078]
[1757685885176,0.4246,4554.0,4553.9,3.4398]
[1757685886681,0.4246,4554.0,4553.9,3.2078]
[1757685886884,0.4246,4554.0,4553.9,3.4398]
[1757685887272,0.4246,4554.0,4552.4,31.647]
[1757685887273,0.4246,4554.0,4553.4,3.2078]
[1757685887589,0.4246,4553.5,4553.4,3.2078]
[1757685887788,0.4246,4553.5,4553.4,3.4398]
[1757685887983,0.1213,4553.0,4552.9,3.2078]
[1757685888288,0.4246,4553.0,4552.9,3.4398]
[1757685888476,0.4246,4553.0,4552.9,0.232]
[1757685888880,0.4246,4553.0,4552.4,34.8548]
[1757685888881,0.4246,4552.5,4552.4,34.8548]
[1757685889181,0.4246,4552.5,4552.4,3.4398]
[1757685889389,0.1213,4552.0,4551.9,3.4398]
[1757685889586,0.4246,4552.0,4551.9,3.4398]
[1757685889983,0.4246,4552.0,4551.9,3.2078]
[1757685890290,0.4246,4551.5,4551.4,3.2078]
[1757685890490,0.4246,4551.5,4551.4,3.4398]
[1757685892990,0.1213,4552.5,4551.4,7.4398]
[1757685893194,0.1213,4552.5,4552.4,3.2078]
[1757685893385,0.1213,4552.5,4552.4,3.4398]
[1757685893386,0.4246,4552.5,4552.4,3.4398]
[1757685893692,0.1213,4553.0,4552.4,7.4398]
[1757685893990,0.4246,4553.0,4552.9,3.2078]
[1757685894191,0.1213,4553.0,4552.9,3.4398]
[1757685894390,0.4246,4553.5,4552.9,3.4398]
[1757685894788,0.1213,4553.0,4552.9,3.4398]
[1757685894993,0.4246,4553.0,4552.9,3.4398]
[1757685896093,0.3033,4553.4,4552.9,7.4398]
[1757685896391,0.3033,4554.3,4553.4,0.39515]
[1757685896586,0.3033,4554.3,4554.2,3.2078]
[1757685896787,0.3033,4554.3,4554.2,3.4398]
[1757685897194,0.3033,4554.3,4554.2,3.2078]
[1757685897396,0.3033,4554.3,4554.2,0.232]
[1757685898390,0.3033,4554.3,4553.7,3.2078]
[1757685898596,0.3129,4553.9,4553.7,3.4398]
[1757685898792,0.1219,4554.0,4553.7,3.4398]
[1757685898997,0.3129,4553.9,4553.7,3.4398]
[1757685899494,0.1219,4554.0,4553.7,3.4398]
[1757685899887,0.3129,4553.9,4553.8,0.232]
[1757685900193,0.1219,4554.0,4553.2,3.2078]
[1757685900194,0.1219,4553.5,4553.2,3.2078]
[1757685900396,0.3129,4553.4,4553.3,0.232]
[1757685901095,0.1219,4554.0,4553.3,0.232]
[1757685901096,0.3129,4553.8,4553.3,4.232]
[1757685901298,0.1219,4554.0,4553.7,3.2078]
[1757685901594,0.1219,4554.0,4553.8,0.232]
[1757685901788,0.3129,4553.9,4553.8,0.232]
[1757685902496,0.1219,4554.0,4553.8,0.232]
[1757685902798,0.3129,4553.9,4553.8,0.232]
[1757685902989,0.3129,4554.3,4553.7,3.2078]
[1757685903189,0.3129,4554.3,4554.2,3.2078]
[1757685903485,0.3129,4554.3,4554.2,0.232]
[1757685903686,0.4348,4553.5,4552.9,2.86686079]
[1757685903890,0.1219,4553.5,4553.0,0.232]
[1757685904090,0.4348,4554.0,4553.0,0.232]
[1757685904395,0.4348,4554.0,4553.9,3.2078]
[1757685904592,0.4348,4554.0,4553.1,3.08646079]
[1757685904895,0.4348,4554.0,4552.8,31.64]
[1757685905094,0.3129,4553.9,4553.2,2.87594095]
[1757685905301,0.3129,4553.4,4553.3,0.232]
[1757685905497,0.1219,4553.5,4553.3,0.232]
[1757685905794,0.3129,4553.4,4553.3,0.232]
[1757685905994,0.1219,4553.0,4552.8,31.64]
[1757685906202,0.4348,4553.0,4552.9,0.232]
[1757685906385,0.4348,4553.0,4552.8,31.64]
[1757685906386,0.1219,4553.0,4551.1,1.94224638]
[1757685906586,0.1219,4553.0,4551.0,31.633]
[1757685906587,0.3129,4552.9,4551.2,0.232]
[1757685906790,0.3129,4552.9,4551.2,3.11675834]
[1757685906991,0.3129,4552.9,4551.5,0.39532]
[1757685907291,0.3129,4552.9,4552.8,3.2078]
[1757685907497,0.3129,4552.9,4552.8,3.4398]
[1757685907894,0.3129,4553.4,4552.8,7.4398]
[1757685908097,0.3129,4553.4,4553.3,3.2078]
[1757685908596,0.3129,4553.4,4553.3,3.4398]
[1757685909200,0.3129,4553.4,4553.3,3.2078]
[1757685909698,0.4348,4553.0,4552.9,3.2078]
[1757685909996,0.4348,4553.0,4552.9,3.4398]
[1757685910197,0.4348,4553.5,4552.9,3.4398]
[1757685910399,0.4348,4553.5,4553.4,3.2078]
[1757685911086,0.4348,4553.5,4551.0,31.633]